Cogmind - Beta 13 @@@ ROGUE MODE // 2024.07.31 @ 22:43:33 Player: Fqbits Result: Destroyed by S-27 Virus with Autogun Performance ------------- Evolutions (3) 1500 Regions Visited (6) 1200 Robots Destroyed (48) 240 Value Destroyed (1744) 1744 Prototype IDs (3) 60 Alien Tech Used (0) 0 Bonus (801) 801 TOTAL SCORE: 5545 Bonus ------- Follower Combat Kills 101 Entered Garrisons 200 Used RIF Installer 500 Cogmind --------- Core Integrity 0/700 Matter 131/300 Energy 290/290 System Corruption 19% Temperature Hot (212) Movement Treading (240) Ox1 Location -7/Garrison Parts ------- > --- POWER (1) -------- Reinforced Deuterium Engine > --- PROPULSION (4) --- Light Treads Light Treads > --- UTILITY (6) ------ High-capacity Storage Unit Improved Light Armor Plating Improved Light Armor Plating > --- WEAPON (2) ------- Gauss Cannon Gauss Cannon > --- INVENTORY (20) --- Improved Melee Analysis Suite Improved Melee Analysis Suite Authchip [R/Combat] Authchip [R/Combat] Authchip [R/Combat] Authchip [R/Combat] Relay Coupler [NC] (34) Relay Coupler [NC] (43) Relay Coupler [Swarmer] (44) Relay Coupler [Hunter] (19) Gauss Cannon Peak State ------------ > --- POWER ------------ Micro Nuclear Core > --- PROPULSION ------- Gravmag System Gravmag System Gravmag System Gravmag System > --- UTILITY ---------- Advanced Heat Sink High-capacity Storage Unit Improved Melee Analysis Suite Improved Melee Analysis Suite Improved Melee Analysis Suite Target Analyzer > --- WEAPON ----------- Remote Datajack Katana > --- INVENTORY -------- Terrain Scan Processor Authchip [R/Combat] Authchip [R/Combat] Authchip [R/Combat] Authchip [R/Combat] Authchip [R/Combat] Authchip [R/Combat] Relay Coupler [NC] Relay Coupler [NC] Relay Coupler [Swarmer] Relay Coupler [Grunt] Relay Coupler [Brawler] Relay Coupler [Hunter] Improved Medium Laser Ion Cannon Assault Cannon Gauss Cannon Gauss Cannon Gauss Cannon Gauss Cannon [Rating: 54] Favorites ----------- Power Light Ion Engine Engine Light Ion Engine Power Core Light Nuclear Core Propulsion Wheel Treads Light Treads Leg Improved Carbon-fiber Leg Wheel Wheel Hover Unit Gravmag System Utility Improved Terrain Scanner Device Improved Terrain Scanner Storage High-capacity Storage Unit Processor Terrain Scan Processor Hackware Relay Coupler [Sentry] Protection Improved Light Armor Plating Weapon EM Pulse Gun Energy Gun EM Pulse Gun Energy Cannon Ion Cannon Ballistic Cannon Gauss Cannon Special Weapon Mining Laser Slashing Weapon Katana Special Melee Weapon Improved Datajack Build | -11 -10 -10 -9 -8 -7 -7 ------- Run | Yrd Mat Min Mat Mat Fac Gar Slots Evolved 6 | . . . 2 2 2 . Power . | . . . . . . . Propulsion 2 | . . . . . 2 . Utility 4 | . . . 2 2 . . Weapon . | . . . . . . . Parts Attached 88 | 16 4 . 11 19 4 34 Power 12 | 3 1 . 2 2 . 4 Engine 7 | 3 1 . 2 . . 1 Core 5 | . . . . 2 . 3 Reactor . | . . . . . . . Propulsion 20 | 2 . . 3 6 2 7 Treads 2 | . . . . . . 2 Leg 6 | . . . . 4 2 . Wheel 3 | 2 . . 1 . . . Hover 9 | . . . 2 2 . 5 Flight . | . . . . . . . Utility 30 | 7 1 . 3 6 1 12 Device 15 | 7 . . 1 4 1 2 Storage 2 | . . . . 2 . . Processor 8 | . 1 . 2 . . 5 Hackware 3 | . . . . . . 3 Protection 2 | . . . . . . 2 Artifact . | . . . . . . . Weapon 26 | 4 2 . 3 5 1 11 Energy Gun 8 | 3 . . 3 1 . 1 Energy Cannon 3 | . . . . 1 . 2 Ballistic Gun . | . . . . . . . Ballistic Cannon 8 | . . . . 2 . 6 Launcher . | . . . . . . . Special Weapon 4 | 1 2 . . . . 1 Impact Weapon . | . . . . . . . Slashing Weapon 1 | . . . . . . 1 Piercing Weapon . | . . . . . . . Special Melee Weapon 2 | . . . . 1 1 . Unidentified Prototypes 3 | . . . 3 . . . Parts Lost 35 | . . . 5 6 . 24 Power 5 | . . . 1 1 . 3 Propulsion 8 | . . . 2 1 . 5 Utility 11 | . . . . 2 . 9 Weapon 11 | . . . 2 2 . 7 Highest Loss Streak 9 | . . . 3 5 . 9 To Critical Strikes . | . . . . . . . Average Slot Usage (%) 93 | . 100 100 93 96 100 86 Engine 7 | . 14 14 10 5 . . Core 2 | . . . . 3 7 5 Leg 5 | . . . . 7 30 12 Wheel 9 | . 28 28 16 . . . Hover 4 | . . . . 8 . 9 Device 12 | . 26 14 11 17 15 7 Storage 4 | . . . . 9 7 7 Processor 25 | . 2 14 33 27 23 22 Energy Gun 8 | . 26 . 17 7 . . Ballistic Cannon 1 | . . . . 3 1 2 Special Weapon 5 | . 2 28 3 . . 2 Slashing Weapon 1 | . . . . . . 4 Special Melee Weapon 2 | . . . . 5 5 2 Naked Turns . | . . . . . . . Heaviest Build 71 | 9 12 10 15 64 58 71 Greatest Support 72 | 20 20 20 20 36 72 72 Greatest Overweight (x) 22 | . . . 1 3 . 22 Average Overweight (x) . | . . . . 1 . . Largest Inventory Capacity 20 | 5 5 5 5 20 20 20 Average Capacity 6 | 5 5 5 5 15 20 20 Most Carried 20 | 5 5 5 5 15 11 20 Average Carried 4 | 3 4 5 4 6 10 16 Final Capacity 20 | 5 5 5 5 20 20 20 Final Carried 12 | 5 5 5 4 12 10 11 Class Distribution -------------------- 83% | Scavenger-Mutant 15% | Mutant Dominant Class ---------------- Scavenger-Mutant | -10/Materials Scavenger-Mutant | -10/Mines Mutant | -9/Materials Mutant | -8/Materials Mutant | -7/Factory Mutant | -7/Garrison Resources | -11 -10 -10 -9 -8 -7 -7 ----------- Run | Yrd Mat Min Mat Mat Fac Gar Matter Collected 1277 | 380 . 19 116 303 . 459 Remotely . | . . . . . . . Salvage Created 1812 | 288 . . 416 501 . 607 Parts 109 | 23 . . 28 26 . 32 Haulers Intercepted 1 | . . . 1 . . . Recyclers Shooed . | . . . . . . . Parts Field Recycled . | . . . . . . . Retrieved Matter . | . . . . . . . Parts Self-Destructed . | . . . . . . . Prevented . | . . . . . . . Kills | -11 -10 -10 -9 -8 -7 -7 ------- Run | Yrd Mat Min Mat Mat Fac Gar Combat Hostiles Destroyed 36 | 2 . . 8 12 . 14 Melee 8 | . . . . . . 8 Guns 14 | 2 . . 8 3 . 1 Cannons 14 | . . . . 9 . 5 Classes Destroyed 13 | 4 . . 5 2 . 2 Worker 4 | 3 . . 1 . . . Builder 1 | . . . 1 . . . Tunneler 5 | 5 . . . . . . Hauler 1 | . . . 1 . . . Recycler 2 | 1 . . 1 . . . Operator 1 | . . . . 1 . . Swarmer 5 | . . . 4 . . 1 Grunt 18 | . . . 2 10 . 6 Brawler 1 | . . . . . . 1 Duelist 2 | . . . . 1 . 1 Sentry 4 | . . . 2 1 . 1 Programmer 4 | . . . . . . 4 Assembled 2 | 2 . . . . . . Best Kill Streak 6 | 6 . . 4 3 . 4 Combat Bots Only 4 | 1 . . 4 3 . 4 Max Kills in Single Turn 2 | 2 . . 1 1 . 1 Gunslinging . | . . . . . . . Exploded . | . . . . . . . Melee 1 | . . . . . . 1 Uniques/NPCs Destroyed . | . . . . . . . Combat | -11 -10 -10 -9 -8 -7 -7 -------- Run | Yrd Mat Min Mat Mat Fac Gar Hostile Shots Fired 408 | 4 . . 59 88 . 257 Missed 109 | 1 . . 13 19 . 76 Damage Taken 4267 | 80 . . 495 1114 . 2578 Core 1189 | . . . 107 378 . 704 Absorbed by Shields 64 | . . . . 64 . . Core Remaining (%) 76 | 100 . 100 73 31 . . Volleys Fired 228 | 79 1 2 50 53 . 43 Largest 2 | 2 2 2 2 2 . 2 Hottest 200 | 140 90 200 200 112 . 108 Shots Fired 331 | 99 2 4 92 63 . 71 Gun 161 | 38 2 . 82 32 . 7 Cannon 90 | . . . . 31 . 59 Launcher . | . . . . . . . Special 80 | 61 . 4 10 . . 5 Kinetic 77 | . . . . 31 . 46 Thermal 228 | 79 1 4 92 32 . 20 Explosive . | . . . . . . . Electromagnetic 21 | 20 1 . . . . . Robot Hit Streak 11 | 9 1 . 6 11 . 6 Robot Miss Streak 10 | 2 1 . 10 8 . 6 Penetration Max 1 | . . . . . . 1 Secondary Targets 1 | . . . . 1 . . Max Gunslinging Chain 1 | . . . . 1 . . Shots Hit Robots 155 | 23 1 . 25 47 . 59 Core Hits 71 | 14 . . 15 22 . 20 Critical Kills . | . . . . . . . Critical Parts Destroyed . | . . . . . . . Critical Strikes 10 | 1 . . 2 2 . 5 Burn 3 | . . . 2 . . 1 Blast 4 | . . . . 2 . 2 Corrupt 1 | 1 . . . . . . Sever 2 | . . . . . . 2 Melee Attacks 39 | . . . . 4 . 35 Impact . | . . . . . . . Slashing 35 | . . . . . . 35 Piercing . | . . . . . . . Sneak Attacks 4 | . . . . 4 . . Combat Hostiles . | . . . . . . . Follow-up Attacks . | . . . . . . . Damage Inflicted 3668 | 328 13 . 458 1003 . 1866 Guns 1188 | 282 13 . 439 339 . 115 Cannons 1585 | . . . . 663 . 922 Explosions 46 | 46 . . . . . . Melee 829 | . . . . . . 829 Ramming 20 | . . . 19 1 . . Kinetic 1352 | . . . . 663 . 689 Thermal 1283 | 144 13 . 439 339 . 348 Explosive . | . . . . . . . Electromagnetic 184 | 184 . . . . . . Impact . | . . . . . . . Slashing 829 | . . . . . . 829 Piercing . | . . . . . . . Highest Corruption 19 | . . . . . . 19 Average Corruption 6 | . . . . . . 6 Corruption Purged . | . . . . . . . Corruption Blocked . | . . . . . . . Effects 16 | . . . . . . 16 Message Errors 5 | . . . . . . 5 Matter Fused 2 | . . . . . . 2 Heat Flow Errors 2 | . . . . . . 2 Energy Discharges 1 | . . . . . . 1 Parts Rejected 1 | . . . . . . 1 Data Loss (minor) 2 | . . . . . . 2 Weapon Failures 3 | . . . . . . 3 Overload Shots . | . . . . . . . Overflow Damage 20 | . . . . . . 20 Projectiles 20 | . . . . . . 20 Explosions . | . . . . . . . Melee . | . . . . . . . Knockbacks 17 | . . . . 8 . 9 Impact 1 | . . . . 1 . . Kinetic 15 | . . . . 6 . 9 Secondary 1 | . . . . 1 . . Self-Inflicted Damage 9 | . . . 9 . . . Shots . | . . . . . . . Rammed 2 | . . . 1 1 . . Targets Rammed 2 | . . . 1 1 . . Kicked . | . . . . . . . Crushed . | . . . . . . . Highest Temperature 396 | 80 30 126 337 396 . 262 Average Temperature 89 | 30 17 65 109 260 . 129 Received Heat Transfer 1362 | 20 . . 111 628 . 603 Effects 8 | . . . . 7 . 1 Shutdowns 1 | . . . . 1 . . Energy Bleed 2 | . . . . 1 . 1 Interference 5 | . . . . 5 . . Siege Activations . | . . . . . . . Robots Corrupted . | . . . . . . . Combat Hostiles . | . . . . . . . Parts Fried 1 | 1 . . . . . . Impact Corruptions . | . . . . . . . Robots Melted . | . . . . . . . Combat Hostiles . | . . . . . . . Parts Melted 6 | . . . 2 2 . 2 Heat Transferred 2692 | 287 37 . 1110 740 . 518 Parts Sabotaged . | . . . . . . . Parts Stolen . | . . . . . . . Parts Stripped . | . . . . . . . Power Chain Reactions 1 | 1 . . . . . . Alert | -11 -10 -10 -9 -8 -7 -7 ------- Run | Yrd Mat Min Mat Mat Fac Gar Peak Influence 278 | 45 15 9 145 159 37 278 Initial 45 | . . 5 . 45 37 25 Average 15 | 1 9 4 50 45 37 140 Maximum Alert Level 1 | . . . . . . 1 Low Security (%) 98 | 100 100 100 100 100 100 67 Level 1 1 | . . . . . . 32 Level 2 . | . . . . . . . Level 3 . | . . . . . . . Level 4 . | . . . . . . . Level 5 . | . . . . . . . High Security . | . . . . . . . Max Security . | . . . . . . . Squads Dispatched 2 | . . . 1 1 . . Investigation 1 | . . . . 1 . . Extermination . | . . . . . . . Reinforcement 1 | . . . 1 . . . Assault . | . . . . . . . Garrison . | . . . . . . . Intercept . | . . . . . . . Searches Triggered . | . . . . . . . Construction Impeded . | . . . . . . . Haulers Reinforced . | . . . . . . . Active Scanning Responses . | . . . . . . . Cargo Convoy Interrupts . | . . . . . . . Stealth | -11 -10 -10 -9 -8 -7 -7 --------- Run | Yrd Mat Min Mat Mat Fac Gar Distress Signals 2 | . . . 1 1 . . Communications Jammed . | . . . . . . . Distress Signals . | . . . . . . . Times Spotted 56 | 2 1 . 15 16 . 22 Peak Tracking Total 5 | 1 1 . 5 5 . 5 Tactical Retreats 3 | . . . . 1 . 2 Traps | -11 -10 -10 -9 -8 -7 -7 ------- Run | Yrd Mat Min Mat Mat Fac Gar Traps Triggered . | . . . . . . . Indirectly . | . . . . . . . Trap Hack Attempts . | . . . . . . . Triggered . | . . . . . . . Disarmed . | . . . . . . . Reprogrammed 6 | . . . . 6 . . Reused 2 | . . . . 2 . . Traps Extracted . | . . . . . . . Installed . | . . . . . . . Triggered 2 | . . . . 2 . . Machines | -11 -10 -10 -9 -8 -7 -7 ---------- Run | Yrd Mat Min Mat Mat Fac Gar Machines Disabled 1 | . . . . . . 1 Max in Single Turn 1 | . . . . . . 1 Garrison Relay 1 | . . . . . . 1 Machines Repaired . | . . . . . . . Machines Dismantled . | . . . . . . . Machines Sabotaged . | . . . . . . . Overloaded Fab Kills . | . . . . . . . Hacking | -11 -10 -10 -9 -8 -7 -7 --------- Run | Yrd Mat Min Mat Mat Fac Gar Machines Accessed 9 | . 1 . 2 3 1 2 Terminals 7 | . 1 . 2 2 . 2 Fabricators . | . . . . . . . Repair Stations . | . . . . . . . Recycling Units . | . . . . . . . Scanalyzers 1 | . . . . 1 . . Garrison Access 1 | . . . . . 1 . Total Hacks 22 | . 1 . 4 10 2 5 Successful 12 | . 1 . . 8 1 2 Failed 10 | . . . 4 2 1 3 Catastrophic 3 | . . . 1 1 . 1 Database Lockouts . | . . . . . . . Manual . | . . . . . . . Terminals 14 | . 1 . 4 4 . 5 Fabricators . | . . . . . . . Repair Stations . | . . . . . . . Recycling Units . | . . . . . . . Scanalyzers 6 | . . . . 6 . . Garrison Access 2 | . . . . . 2 . Terminal Hacks 6 | . 1 . . 3 . 2 Open Door 1 | . . . . . . 1 Emergency Access Points 2 | . 1 . . . . 1 Unreport Threat 1 | . . . . 1 . . Locate Traps 1 | . . . . 1 . . Reprogram Traps 1 | . . . . 1 . . Fabricator Hacks . | . . . . . . . Repair Station Hacks . | . . . . . . . Recycling Unit Hacks . | . . . . . . . Scanalyzer 5 | . . . . 5 . . Insert Component 3 | . . . . 3 . . Analyze 2 | . . . . 2 . . Garrison Access Hacks 1 | . . . . . 1 . Unlock Access 1 | . . . . . 1 . Unauthorized Hacks . | . . . . . . . Terminals . | . . . . . . . Fabricators . | . . . . . . . Repair Stations . | . . . . . . . Recycling Units . | . . . . . . . Scanalyzers . | . . . . . . . Garrison Access . | . . . . . . . Data Cores Recovered 1 | . . . . 1 . . Used . | . . . . . . . Hacking Detections 7 | . . . 2 3 1 1 Full Trace Events 1 | . . . . 1 . . Feedback Events . | . . . . . . . Feedback Blocked . | . . . . . . . Robot Schematics Acquired . | . . . . . . . Robots Built . | . . . . . . . Authchips . | . . . . . . . Time . | . . . . . . . Total Robot Build Rating . | . . . . . . . Part Schematics Acquired 2 | . . . . 2 . . Parts Built . | . . . . . . . Authchips . | . . . . . . . Time . | . . . . . . . Total Part Build Rating . | . . . . . . . Parts Repaired . | . . . . . . . Time . | . . . . . . . Parts Recycled . | . . . . . . . Recycled Matter . | . . . . . . . Retrieved Matter . | . . . . . . . Retrieved Components . | . . . . . . . Parts Scanalyzed 3 | . . . . 3 . . Part Schematics Acquired 2 | . . . . 2 . . Parts Damaged . | . . . . . . . Bothacking | -11 -10 -10 -9 -8 -7 -7 ------------ Run | Yrd Mat Min Mat Mat Fac Gar Used RIF Installer 1 | . . . . . . 1 Robots Hacked 5 | . . . . 3 . 2 Non-combat 3 | . . . . 3 . . Combat 2 | . . . . . . 2 Robot Hacks Applied 5 | . . . . 3 . 2 parse_system 2 | . . . . 2 . . find_station 1 | . . . . 1 . . overwrite_iff 2 | . . . . . . 2 Relay Couplers Released 4 | . . . . . . 4 Machine Destruction 4 | . . . . . . 4 Attached 3 | . . . . . . 3 Fabnet Peak Effective % . | . . . . . . . Robots Rewired . | . . . . . . . Allies Hacked . | . . . . . . . Hacks Repelled . | . . . . . . . Allies | -11 -10 -10 -9 -8 -7 -7 -------- Run | Yrd Mat Min Mat Mat Fac Gar Total Allies 6 | . . 2 . . . 4 Largest Group 2 | . . 2 2 . . 2 Highest-Rated Group 49 | . . 45 45 . . 49 Highest-Rated Ally 31 | . . 31 31 . . 29 Total Orders . | . . . . . . . Ally Attacks 12 | . . . 9 . . 3 Total Damage 273 | . . . 147 . . 126 Kills 5 | . . . 3 . . 2 Allies Corrupted . | . . . . . . . Allies Melted . | . . . . . . . Intel | -11 -10 -10 -9 -8 -7 -7 ------- Run | Yrd Mat Min Mat Mat Fac Gar Robot Analysis Total . | . . . . . . . Derelict Logs Recovered . | . . . . . . . Drone Launches . | . . . . . . . Drone Recoveries . | . . . . . . . Exploration | -11 -10 -10 -9 -8 -7 -7 ------------- Run | Yrd Mat Min Mat Mat Fac Gar Turns Passed 16563 | 12737 141 496 1238 963 54 934 Spaces Moved 4477 | 3005 154 227 309 328 13 441 Core 10 | 4 . . . . . 6 Treads 7 | . . . . . . 7 Legs 387 | . . . . 169 13 205 Wheels 3671 | 3001 154 227 289 . . . Hover 402 | . . . 20 159 . 223 Flight . | . . . . . . . Fastest Speed 46 | 50 80 80 46 106 120 108 Average Speed 92 | 79 80 80 85 181 120 131 Slowest Speed 1150 | 80 80 80 95 231 120 1150 Overloaded Moves . | . . . . . . . Propulsion Burnouts . | . . . . . . . Robots Hopped . | . . . . . . . Cave-ins Triggered . | . . . . . . . Exploration Rate (%) 49 | 110 30 68 28 24 . 37 Regions Visited 6 Branch Regions 1 Pre-discovered Areas . | . . . . . . . Known Exits Taken 1 | . . . . . 1 . Unknown Exits Taken 5 | 1 1 1 1 1 . . Scrap Searched . | . . . . . . . Spaces Dug 27 | 23 . 4 . . . . Terrain Destroyed 45 | 27 . 4 2 10 . 2 Melee . | . . . . . . . Projectile 42 | 24 . 4 2 10 . 2 AOE 3 | 3 . . . . . . Terrain Rammed . | . . . . . . . Walls Destroyed . | . . . . . . . Machines Disabled . | . . . . . . . Actions | -11 -10 -10 -9 -8 -7 -7 --------- Run | Yrd Mat Min Mat Mat Fac Gar Total 16335 | 13118 170 529 1171 630 50 667 Wait 11394 | 10000 2 301 787 196 34 74 Move 4471 | 3004 153 226 308 327 12 441 Hop . | . . . . . . . Pick Up 81 | 14 5 . 9 23 . 30 Fast Attach 7 | . . . 2 . . 5 Attach 45 | 8 . . 7 10 2 18 Detach 2 | 1 . . . 1 . . Swap 37 | 8 4 . 2 9 2 12 Drop 29 | 4 5 . 5 6 . 9 Fire 228 | 79 1 2 50 53 . 43 Melee 39 | . . . . 4 . 35 Ram 2 | . . . 1 1 . . Kick . | . . . . . . . Crush . | . . . . . . . Escape Stasis . | . . . . . . . Rewire . | . . . . . . . Trap . | . . . . . . . Miscellaneous . | . . . . . . . Route ------- -11/Scrapyard -10/Materials -10/Mines -9/Materials -8/Materials -7/Factory -7/Garrison History --------- Turn | Location | Event 3029 | -11/Scrapyard | Discovered new exit (range 16) 8714 | -11/Scrapyard | Assembled infested the area 12738 | -11/Scrapyard | Entered Materials 12739 | -10/Materials | Build established: Scavenger-Mutant 12850 | -10/Materials | Discovered new exit (range 12) 12879 | -10/Materials | Entered Mines 13145 | -10/Mines | Assembled infested the area 13150 | -10/Mines | Assisted by a Guerilla fighting off Assembled 13329 | -10/Mines | Found a hidden stash of uninstalled traps 13334 | -10/Mines | Discovered new exit (range 11) 13375 | -10/Mines | Entered Materials 13375 | -9/Materials | Accompanied by 2 allies 13375 | -9/Materials | Evolved 2 slots: Utility x2 13380 | -9/Materials | Led the pair of lost Derelicts to an unsafe place 13622 | -9/Materials | Lost 3 parts (1n2w) 13872 | -9/Materials | Build established: Mutant 14611 | -9/Materials | Discovered new exit (range 4) 14613 | -9/Materials | Entered another Materials area 14613 | -8/Materials | Evolved 2 slots: Utility x2 14891 | -8/Materials | Lost 5 parts (1n2u2w) 14966 | -8/Materials | Core integrity fell below 50% 15538 | -8/Materials | Discovered new exit (range 11) 15576 | -8/Materials | Entered Factory 15576 | -7/Factory | Evolved 2 slots: Propulsion x2 15629 | -7/Factory | Identified exit to Garrison 15630 | -7/Factory | Entered Garrison 15872 | -7/Garrison | Triggered checkpoint 15902 | -7/Garrison | Garrison Relay disabled 16029 | -7/Garrison | Lost 5 parts (1p2n1u1w) 16158 | -7/Garrison | Rescued a captive Derelict 16170 | -7/Garrison | Rescued a captive Derelict 16173 | -7/Garrison | Installed Relay Interface Framework 16244 | -7/Garrison | Triggered checkpoint 16395 | -7/Garrison | Core integrity fell below 50% 16441 | -7/Garrison | Lost 9 parts (2p2n2u3w) 16465 | -7/Garrison | System corruption reached 10% 16495 | -7/Garrison | Lost 5 parts (5u) 16539 | -7/Garrison | Core integrity fell below 20% 16564 | -7/Garrison | Destroyed by S-27 Virus with Autogun Last Messages --------------- 16526_ System corrupted: Energy discharge (-81). 16532_ C-30 ARC bursts open, deploying its payload. 16532_ S-27 Virus unfolds itself. 16534_ Acquired Imp. Light Armor Plating. 16536_ Slug penetrates Wall. 16539_ Slug penetrates S-27 Virus. 16542_ S-27 Virus knocked back. 16544_ System corrupted: Matter fused (-7). 16545_ VTOL Module melted. 16545_ S-27 Virus destroyed. 16545_ Slug penetrates Reinforced Barrier. 16548_ Destroyed VTOL Module. 16548_ S-27 Virus knocked back. 16550_ Gauss Cannon destroyed. 16553_ Assault Cannon destroyed. 16555_ Acquired 83 matter. 16556_ Ion Cannon destroyed. 16560_ UM,